bitfinex-derivatives/quotes_SOLF0:USTF0_20250516
["timestamp","ask_amount","ask_price","bid_price","bid_amount"]
[1747419700237,65.6517,170.82,170.79,5.8525]
[1747419700835,59.8,170.82,170.8,5.8522]
[1747419701240,59.8,170.82,170.72,70.66152736]
[1747419701638,65.6516,170.82,170.72,70.66152736]
[1747419701839,59.8,170.82,170.72,70.66152736]
[1747419702433,59.8,170.82,170.72,76.12869394]
[1747419702634,65.6518,170.82,170.78,5.8528]
[1747419703840,59.8,170.82,170.72,76.12869394]
[1747419704043,119.6,170.83,170.72,76.12869394]
[1747419704441,119.6,170.83,170.8,5.8522]
[1747419704941,119.6,170.83,170.81,5.8517]
[1747419705136,5.4384974,170.86,170.76,59.9]
[1747419705333,5.4384974,170.86,170.78,10.76152736]
[1747419705538,5.4384974,170.86,170.85,5.8506]
[1747419705734,5.4384974,170.86,170.85,8.08571227]
[1747419706145,59.74,170.89,170.87,5.8499]
[1747419706146,5.4384974,170.88,170.87,5.8499]
[1747419706336,5.4384974,170.88,170.87,8.08501227]
[1747419706734,5.4384974,170.88,170.87,5.8499]
[1747419706940,5.4384974,170.88,170.87,8.08738976]
[1747419707244,5.4384974,170.88,170.87,2.23748976]
[1747419707843,5.4384974,170.88,170.87,8.08738976]
[1747419708046,5.4384974,170.88,170.87,2.23748976]
[1747419708245,11.2879974,170.88,170.87,2.23748976]
[1747419708639,5.4384974,170.88,170.8,59.9]
[1747419708839,5.8507,170.85,170.81,5.8518]
[1747419709149,59.76,170.87,170.8,59.9]
[1747419709449,65.61,170.87,170.83,5.8512]
[1747419709649,59.76,170.87,170.76,16.22869394]
[1747419709835,59.76,170.87,170.78,59.76]
[1747419710448,5.8505,170.86,170.82,5.8514]
[1747419710645,59.76,170.85,170.82,5.8514]
[1747419711157,65.6106,170.85,170.81,5.8518]
[1747419711359,59.76,170.85,170.78,59.76]
[1747419711557,59.76,170.85,170.76,16.22869394]
[1747419711855,5.8513,170.83,170.8,5.8521]
[1747419712356,59.76,170.85,170.77,65.4923]
[1747419712859,59.76,170.87,170.85,5.8504]
[1747419713058,59.72,170.86,170.85,5.8504]
[1747419713558,59.72,170.86,170.84,5.8509]
[1747419714158,59.72,170.86,170.77,65.4923]
[1747419714661,5.8507,170.85,170.81,5.8517]
[1747419715359,5.851,170.84,170.8,5.8522]
[1747419715555,59.72,170.86,170.8,5.8522]
[1747419715755,59.72,170.86,170.77,65.4923]
[1747419715956,5.8511,170.84,170.8,5.852]
[1747419716461,5.8511,170.84,170.81,5.8519]
[1747419716660,5.8506,170.85,170.77,65.4923]
[1747419716960,59.72,170.86,170.77,65.4923]
[1747419718854,5.8511,170.84,170.77,65.4923]
[1747419719063,59.72,170.86,170.77,65.4923]
[1747419719657,65.5703,170.86,170.77,65.4923]
[1747419719864,59.72,170.86,170.77,65.4923]
[1747419720366,59.72,170.86,170.83,5.8511]
[1747419720666,59.72,170.86,170.84,2.17678922]
[1747419720962,59.72,170.86,170.85,2.17678922]
[1747419721161,70.48152736,170.86,170.76,5.46716658]
[1747419721360,10.76152736,170.83,170.76,5.46716658]
[1747419721560,119.5,170.82,170.76,5.46716658]
[1747419721968,5.8531,170.78,170.76,5.46716658]
[1747419722156,59.76,170.77,170.76,5.46716658]
[1747419722663,59.76,170.77,170.71,5.46716658]
[1747419723260,70.52152736,170.77,170.71,5.46716658]
[1747419723571,59.76,170.77,170.67,7.30294427]
[1747419723755,5.8557,170.7,170.67,7.30294427]
[1747419724074,59.8,170.69,170.67,7.30294427]
[1747419724364,130.32152736,170.68,170.58,59.76]
[1747419724569,59.76,170.67,170.58,59.76]
[1747419725566,59.76,170.67,170.63,16.76126764]
[1747419726066,59.76,170.67,170.58,59.76]
[1747419726270,59.76,170.67,170.57,1.878]
[1747419726567,5.8578,170.64,170.6,5.8588]
[1747419726767,5.8578,170.64,170.57,1.878]
[1747419726768,119.6,170.63,170.57,1.878]
[1747419727364,125.4581,170.63,170.59,5.8592]
[1747419727560,119.6,170.63,170.57,1.878]
[1747419728367,59.84,170.63,170.62,5.8584]
[1747419728671,59.84,170.63,170.57,1.878]
[1747419728672,59.78,170.66,170.57,1.878]
[1747419728871,59.96,170.65,170.57,1.878]
[1747419729170,59.96,170.65,170.64,5.8578]
[1747419730274,59.96,170.65,170.63,5.858]
[1747419730571,59.96,170.65,170.57,1.878]
[1747419730760,59.78,170.66,170.58,59.78]
[1747419730969,60.04,170.66,170.58,59.78]
[1747419731470,60.04,170.66,170.65,5.8574]
[1747419733467,60.04,170.66,170.64,5.8577]
[1747419734463,60.04,170.66,170.65,5.8574]
[1747419735976,60.04,170.66,170.59,2.04944971]
[1747419736176,60.04,170.66,170.6,2.04944971]
[1747419736365,60.04,170.66,170.61,2.04944971]
[1747419736568,60.04,170.66,170.59,2.04944971]
[1747419736765,65.6561,170.69,170.6,2.04944971]
[1747419736969,60.06,170.67,170.61,2.04944971]
[1747419737171,65.917,170.67,170.62,5.8582]
[1747419737373,60.06,170.67,170.6,2.04944971]
[1747419737576,60.06,170.67,170.59,2.04944971]
[1747419738079,60.06,170.67,170.58,2.04944971]
[1747419738574,60.06,170.67,170.56,2.04944971]
[1747419738575,77.30823631,170.67,170.56,2.04944971]
[1747419738779,77.30823631,170.67,170.55,2.04944971]
[1747419739078,17.24823631,170.63,170.54,2.04944971]
[1747419739279,122.0715,170.62,170.53,8.47506381]
[1747419739482,5.8604,170.57,170.53,14.33626381]
[1747419739779,60.16,170.56,170.53,8.47506381]
[1747419739982,60.16,170.56,170.54,5.8609]
[1747419740279,60.16,170.56,170.53,8.47506381]
[1747419742176,5.8612,170.54,170.53,8.47506381]
[1747419742379,60.16,170.56,170.44,1.9401]
[1747419742579,77.34823631,170.55,170.44,1.9401]
[1747419742893,5.8625,170.51,170.47,5.8635]
[1747419743182,120.38,170.5,170.49,5.8629]
[1747419743372,60.28,170.5,170.49,5.8629]
[1747419743874,1.9751,170.62,170.45,19.28895588]
[1747419743875,60.36,170.56,170.45,19.28895588]
[1747419744075,60.36,170.56,170.46,2.0186]
[1747419744279,60.36,170.56,170.55,5.8608]
[1747419745383,60.36,170.56,170.54,5.8611]
[1747419746086,60.36,170.56,170.49,60.1]
[1747419747383,60.36,170.56,170.53,5.8613]
[1747419747589,60.36,170.56,170.49,60.1]
[1747419748573,66.2205,170.56,170.51,5.8622]
[1747419749089,60.36,170.56,170.53,5.8614]
[1747419749281,60.36,170.56,170.49,60.1]
[1747419749986,60.32,170.61,170.5,60.32]
[1747419751090,60.32,170.61,170.51,2.03465635]
[1747419751689,60.32,170.61,170.52,3.9024]
[1747419751994,0.1625,170.69,170.53,77.36823631]
[1747419752291,120.4,170.68,170.66,5.857]
[1747419752483,60.28,170.68,170.66,5.857]
[1747419752884,60.12,170.69,170.67,5.8567]
[1747419753093,60.12,170.69,170.61,5.8606]
[1747419753392,60.12,170.69,170.68,5.8564]
[1747419753592,60.3,170.7,170.68,5.8564]
[1747419753793,60.12,170.73,170.62,60.3]
[1747419753988,60.38,170.71,170.62,60.3]
[1747419754293,60.38,170.71,170.68,5.8563]
[1747419754487,506.44,170.8,170.66,120.46]
[1747419754791,120.46,170.79,170.67,60.1]
[1747419754991,126.3128,170.79,170.67,60.1]
[1747419755400,5.853,170.78,170.73,5.8544]
[1747419755994,1.17116589,170.77,170.74,5.8542]
[1747419756298,1.17116589,170.77,170.71,60.1]
[1747419756487,1.17116589,170.77,170.75,5.8537]
[1747419757992,1.17116589,170.77,170.74,5.8542]
[1747419758192,1.17116589,170.77,170.72,5.7892]
[1747419758598,1.17116589,170.77,170.75,5.8539]
[1747419758894,1.17116589,170.77,170.72,5.7892]
[1747419759096,60.1,170.82,170.72,5.7892]
[1747419759286,60.08,170.85,170.72,7.83015281]
[1747419759484,0.1597,170.9,170.72,7.83015281]
[1747419759485,60.3,170.84,170.74,17.24823631]
[1747419759690,60.3,170.86,170.75,120.38]
[1747419760290,60.3,170.86,170.76,2.0414255]
[1747419761098,5.8511,170.84,170.78,5.8529]
[1747419761291,60.3,170.86,170.76,2.0414255]
[1747419761600,60.3,170.86,170.81,5.8518]
[1747419762592,60.3,170.86,170.82,5.8516]
[1747419762797,60.08,170.88,170.79,60.06]
[1747419762998,120.3,170.88,170.79,60.06]
[1747419763193,120.3,170.88,170.8,1.8328]
[1747419763497,120.3,170.88,170.77,60.06]
[1747419763800,120.3,170.88,170.78,5.8529]
[1747419764099,120.3,170.88,170.77,60.06]
[1747419764295,120.3,170.88,170.78,5.8529]
[1747419764899,5.8511,170.84,170.78,5.8529]
[1747419765087,65.9911,170.84,170.79,5.8525]
[1747419765292,60.14,170.84,170.77,60.06]
[1747419765793,60.14,170.84,170.8,5.8521]
[1747419766199,60.08,170.88,170.78,2.03952395]
[1747419766401,60.08,170.88,170.78,62.15837458]
[1747419766699,65.9701,170.87,170.78,60.12]
[1747419766899,65.9701,170.87,170.82,5.8516]
[1747419768605,60.12,170.87,170.78,60.12]
[1747419769103,60.12,170.87,170.83,5.8512]
[1747419769305,60.04,170.91,170.81,60.04]
[1747419769602,60.02,170.9,170.82,1.8849]
[1747419769802,60.06,170.9,170.82,1.8849]
[1747419770105,60.04,170.91,170.82,1.8849]
[1747419770306,60.04,170.94,170.83,3.8585]
[1747419770810,60.04,170.98,170.83,3.8585]
[1747419770998,120.16,170.98,170.87,17.24823631]
[1747419771207,120.16,170.98,170.88,120.16]
[1747419771404,5.846,170.99,170.88,120.16]
[1747419771803,60.14,171.0,170.88,120.16]
[1747419772008,11.2849974,170.97,170.92,5.848]
[1747419772309,5.4384974,170.97,170.88,120.16]
[1747419773208,5.4384974,170.97,170.93,5.8475]
[1747419773510,5.4384974,170.97,170.88,120.16]
[1747419773901,5.8474,170.95,170.9,5.8487]
[1747419774214,60.1,170.96,170.88,120.16]
[1747419775211,5.8474,170.95,170.9,5.8486]
[1747419775511,60.1,170.96,170.88,120.16]
[1747419776007,65.9471,170.96,170.88,120.16]
[1747419776208,60.1,170.96,170.88,120.16]
[1747419776611,5.4384974,170.97,170.88,120.16]
[1747419777012,60.04,170.99,170.88,120.16]
[1747419777208,5.8469,170.96,170.91,5.8483]
[1747419777606,60.04,170.97,170.91,5.8483]
[1747419777807,5.847,170.96,170.91,5.8483]
[1747419778006,60.04,170.97,170.92,5.8481]
[1747419778807,65.8866,170.97,170.92,5.8481]
[1747419779006,65.8866,170.97,170.93,5.8478]
[1747419779303,5.8474,170.95,170.83,3.8585]
[1747419779509,120.04,170.97,170.89,5.849]
[1747419779707,120.04,170.97,170.88,60.0]
[1747419781810,60.02,171.06,170.94,17.24823631]
[1747419782007,60.02,171.06,170.95,125.8212]
[1747419782208,1.3234,171.1,170.95,125.8212]
[1747419782507,60.08,171.09,170.95,125.8212]
[1747419782706,5.8427,171.08,171.04,5.844]
[1747419782902,60.08,171.09,171.03,60.0]
[1747419783116,60.08,171.09,171.0,60.1]
[1747419783117,60.08,171.12,171.04,60.0]
[1747419783315,60.08,171.12,171.05,60.0]
[1747419784415,5.8426,171.09,171.05,60.0]
[1747419785016,5.8426,171.09,171.05,65.8435]
[1747419785911,5.8421,171.1,171.05,60.0]
[1747419786112,60.08,171.12,171.05,60.0]
[1747419786512,60.08,171.12,171.06,5.8433]
[1747419786814,60.08,171.12,171.05,60.0]
[1747419787013,5.8431,171.07,171.02,59.98]
[1747419787211,60.08,171.12,171.02,59.98]
[1747419787518,77.32823631,171.12,171.02,59.98]
[1747419788017,5.8435,171.06,171.03,5.8443]
[1747419788217,60.06,171.08,171.02,59.98]
[1747419788514,60.08,171.07,171.02,59.98]
[1747419790117,59.96,171.06,170.98,59.96]
[1747419790416,5.845,171.02,170.98,5.8459]
[1747419790721,60.16,171.03,170.95,1.9737]
[1747419790911,60.16,171.03,170.95,59.96]
[1747419791216,59.96,171.02,170.92,59.96]
[1747419792614,65.805,171.02,170.92,59.96]
[1747419792809,1.3192,171.06,170.92,59.96]
[1747419793118,60.26,171.04,170.95,17.24823631]
[1747419793415,60.26,171.04,170.96,122.3023]
[1747419794220,60.42,171.07,170.96,122.3023]
[1747419795419,60.42,171.07,170.96,120.4]
[1747419795614,5.8453,171.01,170.97,5.8462]
[1747419795815,60.42,171.02,170.91,19.14863631]
[1747419796020,60.44,171.01,170.93,59.96]
[1747419796323,60.44,171.01,170.95,5.8469]
[1747419796621,60.44,171.01,170.92,59.96]
[1747419796822,5.8463,170.98,170.94,5.8473]
[1747419797320,5.8459,170.99,170.95,5.8471]
[1747419798223,5.8459,170.99,170.96,5.8466]
[1747419798419,5.8459,170.99,170.91,59.96]
[1747419798717,60.44,171.01,170.91,59.96]
[1747419798922,60.44,171.01,170.92,2.03704279]
[1747419799119,60.44,171.01,170.91,59.96]
[1747419801023,66.2854,171.01,170.91,59.96]
[1747419801317,60.44,171.01,170.91,59.96]
[1747419801523,60.44,171.01,170.91,5.8483]
[1747419801822,60.44,171.01,170.9,1.9703]
[1747419802018,5.8482,170.92,170.88,66.1893]
[1747419802231,60.4,170.94,170.88,60.34]
[1747419802523,60.44,170.96,170.88,60.34]
[1747419802824,60.52,170.99,170.89,62.56123495]
[1747419803018,60.52,170.99,170.9,2.04123495]
[1747419803221,60.52,170.99,170.91,2.04123495]
[1747419803524,60.52,170.99,170.92,64.26643495]
[1747419803724,60.52,170.99,170.92,62.2252]
[1747419804024,60.52,170.99,170.95,5.8469]
[1747419804223,60.52,170.99,170.92,62.2252]
[1747419805026,66.366,170.99,170.92,62.2252]
[1747419805218,60.52,170.99,170.92,62.2252]
[1747419805418,60.52,170.99,170.92,60.36]
[1747419805619,5.8464,170.98,170.93,5.8476]
[1747419806325,5.8464,170.98,170.94,5.8474]
[1747419806519,66.3659,170.99,170.92,60.36]
[1747419806713,60.52,170.99,170.92,60.36]
[1747419806917,60.52,170.99,170.96,5.8466]
[1747419807326,60.52,170.99,170.97,5.8463]
[1747419807530,60.36,171.01,170.93,2.04689037]
[1747419807824,60.36,171.01,170.94,2.04671179]
[1747419808023,66.2053,171.01,170.96,5.8466]
[1747419808217,60.36,171.01,170.96,5.8466]
[1747419808820,5.8458,170.99,170.93,2.0196]
[1747419809728,5.8458,170.99,170.95,5.8469]
[1747419810223,5.8462,170.98,170.94,5.8474]
[1747419810529,60.8,170.98,170.89,60.36]
[1747419810718,60.8,170.98,170.9,2.05064227]
[1747419810914,60.8,170.98,170.93,5.8477]
[1747419810915,5.8466,170.97,170.93,5.8477]
[1747419812030,60.8,170.98,170.92,2.0517183]
[1747419812230,60.8,170.98,170.89,62.3357]
[1747419812525,60.8,170.98,170.9,2.05287809]
[1747419812726,66.6463,170.98,170.93,5.8478]
[1747419813330,66.6463,170.98,170.94,5.8474]
[1747419813532,60.8,170.98,170.89,62.3357]
[1747419813724,60.8,170.98,170.9,2.05421147]
[1747419814030,88.28083865,170.97,170.82,91.78982842]
[1747419814234,89.60143865,170.97,170.86,2.05465564]
[1747419814531,5.8494,170.89,170.82,9.15132763]
[1747419814829,66.6094,170.89,170.82,9.15132763]
[1747419815233,66.6094,170.89,170.86,5.8499]
[1747419816331,66.6094,170.89,170.82,9.15132763]
[1747419816332,5.8495,170.88,170.85,11.15764903]
[1747419816535,60.76,170.89,170.82,1.9648]
[1747419816830,60.76,170.89,170.83,2.05501471]
[1747419817027,60.76,170.89,170.82,1.9648]
[1747419817233,60.76,170.89,170.83,2.05501714]
[1747419817433,60.76,170.89,170.84,2.05501714]
[1747419817639,60.76,170.89,170.86,5.8499]
[1747419817825,60.76,170.89,170.83,2.05399656]
[1747419818025,60.76,170.89,170.69,1.01879501]
[1747419818221,60.76,170.89,170.81,5.8516]
[1747419818730,5.8504,170.86,170.78,1.17109731]
[1747419819026,60.76,170.89,170.79,2.05316613]
[1747419819027,60.68,170.88,170.79,2.05316613]
[1747419819234,66.5297,170.88,170.8,2.05316613]
[1747419819433,60.68,170.88,170.81,2.05316613]
[1747419819634,60.68,170.88,170.79,1.17102874]
[1747419819835,60.68,170.88,170.8,2.05213147]
[1747419820035,60.68,170.88,170.79,1.17102874]
[1747419820233,62.004,170.88,170.79,1.17102874]
[1747419820535,17.20356718,170.87,170.79,1.17102874]
[1747419821530,5.851,170.84,170.72,60.38]
[1747419821734,121.0,170.83,170.72,60.38]
[1747419822935,60.38,170.9,170.75,17.20356718]
[1747419823132,60.7,170.92,170.89,5.8489]
[1747419823736,60.7,170.92,170.9,5.8487]
[1747419824134,60.7,170.92,170.84,2.05023984]
[1747419824336,60.7,170.92,170.85,2.05023984]
[1747419824635,60.7,170.92,170.83,62.3807]
[1747419824831,66.5482,170.92,170.87,5.8497]
[1747419825039,60.7,170.92,170.83,2.0007]
[1747419825236,5.8494,170.89,170.81,2.05032168]
[1747419825540,60.38,170.9,170.82,2.05032168]
[1747419825732,60.38,170.9,170.83,2.05032168]
[1747419825933,60.38,170.9,170.8,64.2456]
[1747419826244,60.38,170.9,170.81,2.04967227]
[1747419826540,5.42262008,170.93,170.82,2.04967227]
[1747419826732,66.12262008,170.93,170.83,62.74967227]
[1747419826938,66.12262008,170.93,170.84,62.44967227]
[1747419827133,66.12262008,170.93,170.92,5.8482]
[1747419828530,5.42262008,170.93,170.92,5.8482]
[1747419829231,5.42262008,170.93,170.91,5.8484]
[1747419829738,5.42262008,170.93,170.9,5.8488]
[1747419829947,60.68,170.93,170.88,1.9803]
[1747419830244,121.38,170.93,170.85,5.8503]
[1747419830445,121.38,170.93,170.82,62.5502]
[1747419830637,5.8487,170.91,170.83,2.05191585]
[1747419830841,5.8487,170.91,170.86,5.8502]
[1747419831241,5.8487,170.91,170.83,1.8502]
[1747419831443,5.8487,170.91,170.84,2.05308286]
[1747419831745,5.8487,170.91,170.85,2.05308286]
[1747419831946,5.8487,170.91,170.83,1.8502]
[1747419832245,5.8487,170.91,170.84,2.05317822]
[1747419832444,121.38,170.93,170.85,2.05317822]
[1747419832633,121.38,170.93,170.83,1.8502]
[1747419832634,121.38,170.93,170.86,2.05380309]
[1747419832840,121.38,170.93,170.87,2.05380309]
[1747419833039,60.7,170.93,170.88,2.05380309]
[1747419833243,60.6,170.95,170.89,2.0535342]
[1747419833444,60.6,170.95,170.86,60.7]
[1747419833747,60.6,170.94,170.91,5.8482]
[1747419833949,60.6,170.94,170.88,2.05421009]
[1747419834248,60.6,170.94,170.86,60.7]
[1747419834443,60.6,170.94,170.87,2.05515535]
[1747419834650,60.6,170.94,170.88,2.05515535]
[1747419834952,66.4475,170.94,170.89,5.8489]
[1747419835153,60.6,170.94,170.89,5.8489]
[1747419835349,60.6,170.94,170.86,60.7]
[1747419835550,60.6,170.94,170.87,2.05545267]
[1747419835739,60.6,170.94,170.88,2.05545267]
[1747419835942,60.6,170.94,170.86,60.7]
[1747419836140,60.6,170.94,170.87,2.05545286]
[1747419836345,60.6,170.94,170.88,2.05545286]
[1747419836649,60.6,170.94,170.9,5.8486]
[1747419837350,66.4476,170.94,170.9,5.8486]
[1747419838250,60.6,170.94,170.91,5.8484]
[1747419838451,60.7,170.96,170.86,60.7]
[1747419838651,60.7,170.96,170.87,3.95714373]
[1747419838652,121.2,170.96,170.87,3.95714373]
[1747419838849,60.7,170.96,170.88,2.05624373]
[1747419839151,121.2,170.96,170.89,2.05624373]
[1747419839350,121.2,170.96,170.88,62.3732]
[1747419839351,121.2,170.96,170.9,2.05624373]
[1747419839551,121.2,170.96,170.91,2.05624373]
[1747419839748,121.2,170.96,170.88,62.3732]
[1747419839949,121.2,170.96,170.89,2.05703128]
[1747419840144,121.2,170.96,170.9,2.05703128]
[1747419840348,121.2,170.96,170.88,1.8932]
[1747419840545,121.2,170.96,170.89,2.05771246]
[1747419840840,121.2,170.96,170.9,2.05771246]
[1747419841044,121.2,170.96,170.88,1.8932]
[1747419841242,121.2,170.96,170.89,2.05781928]
[1747419841453,121.2,170.96,170.9,2.05806934]
[1747419841749,60.7,170.99,170.91,2.05806934]
[1747419841947,66.12262008,171.02,170.92,4.00216934]
[1747419842151,5.42262008,171.02,170.93,62.75721741]
[1747419842341,5.42262008,171.02,170.94,2.05721741]
[1747419842546,5.42262008,171.02,171.01,5.8451]
[1747419843152,5.42262008,171.02,171.01,7.90136293]
[1747419844049,71.32524016,171.07,171.04,5.8441]
[1747419844252,60.48,171.07,170.99,2.05517117]
[1747419844441,60.48,171.07,171.0,2.05517117]
[1747419844643,60.48,171.07,171.04,5.8437]
[1747419845049,60.7,171.08,171.01,68.469]
[1747419845251,60.7,171.08,171.01,62.6241]
[1747419845759,60.7,171.08,170.98,1.9446]
[1747419846058,17.16328204,171.07,170.96,7.7721]
[1747419846451,5.8458,170.99,170.96,1.9253]
[1747419846657,60.58,171.01,170.96,1.9253]
[1747419847557,5.8458,170.99,170.96,1.9253]
[1747419847855,60.58,171.01,170.96,1.9253]
[1747419849157,60.48,171.02,170.96,1.9253]
[1747419849755,60.48,171.02,170.96,7.7719]
[1747419849954,60.48,171.02,170.96,1.9253]
[1747419850359,5.8454,171.01,170.96,7.7718]
[1747419851454,5.8455,171.0,170.96,7.7718]
[1747419852763,60.48,171.02,170.96,1.9253]
[1747419853059,60.48,171.02,170.9,60.68]
[1747419853259,3.9602,171.01,170.91,2.05246044]
[1747419853460,5.8472,170.95,170.91,7.90066044]
[1747419853661,3.9602,171.01,170.9,60.68]
[1747419853662,60.38,170.97,170.9,60.68]
[1747419853864,5.8478,170.94,170.9,5.8488]
[1747419854053,5.8478,170.94,170.89,2.05286249]
[1747419854255,5.8478,170.94,170.9,2.05286249]
[1747419854456,5.8478,170.94,170.91,2.05286249]
[1747419854660,5.8473,170.95,170.88,1.8659]
[1747419854862,5.8473,170.95,170.89,2.05303085]
[1747419855062,5.8473,170.95,170.88,1.8659]
[1747419855063,5.8473,170.95,170.91,5.8483]
[1747419855660,60.38,170.97,170.88,1.8659]
[1747419855862,60.38,170.97,170.89,2.05313251]
[1747419856164,5.846,170.99,170.9,2.05313251]
[1747419856365,5.846,170.99,170.95,5.8471]
[1747419856662,60.32,171.0,170.92,2.05313251]
[1747419856862,60.32,171.0,170.93,2.05313251]
[1747419857069,60.34,171.03,170.94,2.05313251]
[1747419857267,60.34,171.03,170.95,62.73313251]
[1747419857464,5.8448,171.02,170.97,5.8463]
[1747419857664,5.8448,171.02,170.96,2.05244417]
[1747419857867,5.8448,171.02,170.95,60.68]
[1747419858066,5.8448,171.02,170.96,2.05244363]
[1747419858360,60.34,171.03,170.95,60.68]
[1747419858865,60.34,171.03,170.97,5.8462]
[1747419859166,60.34,171.03,170.95,60.68]
[1747419860066,5.8449,171.02,170.98,5.8459]
[1747419860268,60.68,171.04,170.95,60.68]
[1747419860466,120.94,171.04,170.96,3.99841642]
[1747419860767,60.26,171.04,170.97,2.05231642]
[1747419860961,60.26,171.04,170.98,2.05231642]
[1747419861162,60.26,171.04,170.96,5.7567]
[1747419861359,60.26,171.04,170.97,2.05210229]
[1747419861560,60.26,171.04,170.98,2.05210229]
[1747419861759,60.26,171.04,170.96,5.7567]
[1747419861960,60.26,171.04,171.01,5.845]
[1747419862758,60.26,171.04,170.98,2.05209561]
[1747419862964,60.26,171.04,170.96,5.7567]
[1747419863164,60.26,171.04,170.96,1.9461]
[1747419863364,60.28,171.03,170.97,5.8464]
[1747419863767,60.28,171.03,170.92,60.28]
[1747419863973,17.16328204,171.02,170.9,5.42262008]
[1747419864270,505.24,171.01,170.91,2.05367733]
[1747419864466,60.32,171.0,170.9,5.42262008]
[1747419864667,60.28,170.99,170.9,5.42262008]
[1747419864865,17.16328204,170.98,170.9,5.42262008]
[1747419865067,5.8485,170.91,170.9,5.42262008]
[1747419865267,66.1485,170.91,170.9,5.42262008]
[1747419865767,5.8496,170.88,170.87,7.23016011]
[1747419865966,60.3,170.91,170.87,7.23016011]
[1747419866474,60.3,170.91,170.88,2.05496752]
[1747419866675,60.3,170.91,170.82,1.8692]
[1747419866871,60.3,170.91,170.88,5.8492]
[1747419867068,60.3,170.91,170.82,1.8692]
[1747419867271,60.3,170.91,170.83,2.05495222]
[1747419867569,60.3,170.91,170.84,2.05495222]
[1747419867770,60.3,170.91,170.85,2.05495222]
[1747419867969,60.3,170.91,170.86,2.05495222]
[1747419868276,60.3,170.91,170.82,1.8692]
[1747419868277,60.3,170.91,170.87,2.05495222]
[1747419868577,60.3,170.91,170.88,5.8493]
[1747419870178,60.3,170.91,170.82,1.8692]
[1747419870370,60.3,170.91,170.83,2.05545023]
[1747419870670,60.3,170.91,170.84,2.05545023]
[1747419870869,60.3,170.91,170.85,2.05595729]
[1747419871066,60.3,170.91,170.86,2.05595729]
[1747419871269,60.3,170.91,170.88,5.8493]
[1747419871465,60.3,170.91,170.89,2.05595729]
[1747419871674,60.3,170.91,170.9,2.05595729]
[1747419871869,60.3,170.91,170.82,1.8692]
[1747419872082,60.3,170.91,170.83,2.05630294]
[1747419872283,60.3,170.91,170.84,2.05630294]
[1747419872483,60.3,170.91,170.85,2.05630294]
[1747419872684,60.3,170.91,170.86,2.05630294]
[1747419872984,66.1487,170.91,170.82,1.8692]
[1747419873286,66.1487,170.91,170.83,2.05655641]
[1747419873487,66.1487,170.91,170.87,5.8498]
[1747419873684,60.3,170.91,170.79,1.8491]
[1747419873883,60.3,170.91,170.81,5.8517]
[1747419874076,60.3,170.91,170.8,2.05663944]
[1747419874077,17.16328204,170.89,170.76,7.23016011]
[1747419874281,60.3,170.88,170.77,2.05699216]
[1747419874484,60.26,170.87,170.76,13.08376011]
[1747419874690,60.26,170.87,170.76,7.23016011]
[1747419874890,60.26,170.87,170.76,13.08346011]